[Event "*** Titled Tuesday Blitz"]
[Site "Chess.com"]
[Date "2021.03.30"]
[Round "11"]
[White "MasterKroket"]
[Black "Sueetin"]
[Result "0-1"]
[WhiteElo "2509"]
[BlackElo "2442"]
[TimeControl "180+1"]
[EndTime "12:07:40 PDT"]
[Termination "Sueetin won by resignation"]

1. d4 {[%clk 0:03:00.9]} 1... Nf6 {[%clk 0:02:59.8]} 2. c4 {[%clk 0:03:01.5]}
2... e6 {[%clk 0:03:00.4]} 3. Nf3 {[%clk 0:03:01.6]} 3... d5 {[%clk 0:03:00.1]}
4. Nc3 {[%clk 0:03:01.7]} 4... a6 {[%clk 0:03:00.6]} 5. cxd5 {[%clk 0:03:01]}
5... exd5 {[%clk 0:03:01.5]} 6. Bg5 {[%clk 0:03:01.3]} 6... Be6 {[%clk
0:02:58.4]} 7. e3 {[%clk 0:03:00.9]} 7... Nbd7 {[%clk 0:02:56.5]} 8. Bd3 {[%clk
0:03:01]} 8... Bd6 {[%clk 0:02:53.7]} 9. O-O {[%clk 0:03:00.8]} 9... c6 {[%clk
0:02:53.7]} 10. h3 {[%clk 0:02:55.5]} 10... h6 {[%clk 0:02:53.2]} 11. Bh4 {[%clk
0:02:54.9]} 11... Qc7 {[%clk 0:02:49.3]} 12. e4 {[%clk 0:02:36.9]} 12... dxe4
{[%clk 0:02:42.2]} 13. Nxe4 {[%clk 0:02:36.7]} 13... Nxe4 {[%clk 0:02:37.1]} 14.
Bxe4 {[%clk 0:02:37.3]} 14... Nb6 {[%clk 0:02:18.5]} 15. Re1 {[%clk 0:02:31.9]}
15... g5 {[%clk 0:02:10.8]} 16. Bg3 {[%clk 0:02:31.6]} 16... Bxg3 {[%clk
0:02:09.7]} 17. fxg3 {[%clk 0:02:32.5]} 17... O-O-O {[%clk 0:02:09.4]} 18. g4
{[%clk 0:02:18.9]} 18... Nd5 {[%clk 0:02:04.9]} 19. Qc2 {[%clk 0:02:15.8]} 19...
Nf4 {[%clk 0:02:01.7]} 20. Rad1 {[%clk 0:02:07.7]} 20... Kb8 {[%clk 0:01:57.7]}
21. b4 {[%clk 0:02:00.2]} 21... Bd5 {[%clk 0:01:52.2]} 22. a4 {[%clk 0:01:57.8]}
22... Bxe4 {[%clk 0:01:50]} 23. Qxe4 {[%clk 0:01:56.2]} 23... Rd5 {[%clk
0:01:47.9]} 24. Qe7 {[%clk 0:01:49.9]} 24... Nxh3+ {[%clk 0:01:37.3]} 25. gxh3
{[%clk 0:01:24.8]} 25... Qg3+ {[%clk 0:01:36.8]} 26. Kh1 {[%clk 0:01:25.2]}
26... Qxf3+ {[%clk 0:01:34.8]} 27. Kh2 {[%clk 0:01:25.8]} 27... Qf2+ {[%clk
0:01:27.1]} 28. Kh1 {[%clk 0:01:26]} 28... Rhd8 {[%clk 0:01:20.8]} 29. Qe4
{[%clk 0:01:20.7]} 29... Rxd4 {[%clk 0:01:14.1]} 30. Rxd4 {[%clk 0:01:16.5]}
30... Rxd4 {[%clk 0:01:04.7]} 31. Qe5+ {[%clk 0:01:15.7]} 31... Ka8 {[%clk
0:01:02.8]} 32. b5 {[%clk 0:00:37.6]} 32... Rd2 {[%clk 0:01:00.1]} 33. Qe8+
{[%clk 0:00:32.8]} 33... Ka7 {[%clk 0:01:00.2]} 34. Qe3+ {[%clk 0:00:32.4]}
34... Qxe3 {[%clk 0:00:59.1]} 35. Rxe3 {[%clk 0:00:33.3]} 35... axb5 {[%clk
0:00:53.4]} 36. axb5 {[%clk 0:00:33.7]} 36... cxb5 {[%clk 0:00:52.9]} 37. Re7
{[%clk 0:00:33.4]} 37... b4 {[%clk 0:00:42.9]} 38. Rxf7 {[%clk 0:00:33.2]} 38...
b3 {[%clk 0:00:42.7]} 39. Rf1 {[%clk 0:00:32.8]} 39... b2 {[%clk 0:00:42.5]} 0-1

[Event "*** Titled Tuesday Blitz"]
[Site "Chess.com"]
[Date "2021.03.30"]
[Round "11"]
[White "Raud100"]
[Black "eldur16"]
[Result "0-1"]
[WhiteElo "2387"]
[BlackElo "2555"]
[TimeControl "180+1"]
[EndTime "12:07:41 PDT"]
[Termination "eldur16 won on time"]

1. d4 {[%clk 0:03:00.9]} 1... Nf6 {[%clk 0:02:29.4]} 2. c4 {[%clk 0:03:00.1]}
2... e6 {[%clk 0:02:28.2]} 3. Nf3 {[%clk 0:03:00.3]} 3... Bb4+ {[%clk 0:02:27]}
4. Nbd2 {[%clk 0:03:00]} 4... b6 {[%clk 0:02:26.7]} 5. g3 {[%clk 0:03:00.5]}
5... Bb7 {[%clk 0:02:26.2]} 6. Bg2 {[%clk 0:03:01]} 6... O-O {[%clk 0:02:26.1]}
7. O-O {[%clk 0:03:01.5]} 7... d5 {[%clk 0:02:26.2]} 8. Ne5 {[%clk 0:03:01.1]}
8... Bd6 {[%clk 0:02:25.2]} 9. Ndf3 {[%clk 0:03:00.3]} 9... Na6 {[%clk
0:02:23.2]} 10. Bf4 {[%clk 0:02:57.9]} 10... c5 {[%clk 0:02:22.5]} 11. Rc1
{[%clk 0:02:52.4]} 11... dxc4 {[%clk 0:02:21.8]} 12. Nxc4 {[%clk 0:02:42.1]}
12... Bxf4 {[%clk 0:02:21]} 13. gxf4 {[%clk 0:02:43]} 13... cxd4 {[%clk
0:02:20.9]} 14. Qxd4 {[%clk 0:02:40.9]} 14... Nc5 {[%clk 0:02:18]} 15. Rfd1
{[%clk 0:02:30.5]} 15... Qxd4 {[%clk 0:02:16.6]} 16. Rxd4 {[%clk 0:02:31.4]}
16... Rfd8 {[%clk 0:02:13.7]} 17. Rcd1 {[%clk 0:02:09]} 17... Rxd4 {[%clk
0:02:13]} 18. Nxd4 {[%clk 0:01:59.3]} 18... Bxg2 {[%clk 0:02:11.6]} 19. Kxg2
{[%clk 0:02:00.2]} 19... Rd8 {[%clk 0:02:10.7]} 20. Kf3 {[%clk 0:01:47.3]} 20...
h6 {[%clk 0:02:09]} 21. Rd2 {[%clk 0:01:29.3]} 21... g5 {[%clk 0:02:03.9]} 22.
f5 {[%clk 0:01:13.5]} 22... g4+ {[%clk 0:01:49.5]} 23. Kf4 {[%clk 0:01:04.8]}
23... Nfe4 {[%clk 0:01:43.9]} 24. Nxe6 {[%clk 0:00:35]} 24... Nxd2 {[%clk
0:01:34.9]} 25. Nxd8 {[%clk 0:00:32.3]} 25... Nxc4 {[%clk 0:01:34.6]} 26. b3
{[%clk 0:00:26.7]} 26... Nd6 {[%clk 0:01:32.8]} 27. Kxg4 {[%clk 0:00:24.2]}
27... Nce4 {[%clk 0:01:32.6]} 28. Kf4 {[%clk 0:00:18.8]} 28... Nxf2 {[%clk
0:01:31.7]} 29. Ke5 {[%clk 0:00:18.2]} 29... Ne8 {[%clk 0:01:29.1]} 30. Nc6
{[%clk 0:00:16.3]} 30... a5 {[%clk 0:01:26.8]} 31. Ne7+ {[%clk 0:00:13]} 31...
Kf8 {[%clk 0:01:25.6]} 32. Nd5 {[%clk 0:00:13.9]} 32... Ng4+ {[%clk 0:01:24.8]}
33. Kf4 {[%clk 0:00:12]} 33... Nxh2 {[%clk 0:01:24.6]} 34. Nxb6 {[%clk
0:00:11.9]} 34... Nd6 {[%clk 0:01:19.8]} 35. e4 {[%clk 0:00:08.6]} 35... f6
{[%clk 0:01:18.6]} 36. e5 {[%clk 0:00:07.3]} 36... fxe5+ {[%clk 0:01:18.6]} 37.
Kxe5 {[%clk 0:00:08.2]} 37... Nf7+ {[%clk 0:01:14.5]} 38. Kf4 {[%clk 0:00:05.9]}
38... Nd8 {[%clk 0:01:13.7]} 39. Nc4 {[%clk 0:00:03.6]} 39... Nc6 {[%clk
0:01:13.1]} 0-1

[Event "*** Titled Tuesday Blitz"]
[Site "Chess.com"]
[Date "2021.03.30"]
[Round "11"]
[White "djano"]
[Black "Bhagya_2312"]
[Result "1-0"]
[WhiteElo "2445"]
[BlackElo "2197"]
[TimeControl "180+1"]
[EndTime "12:07:42 PDT"]
[Termination "djano won by resignation"]

1. e4 {[%clk 0:03:00.9]} 1... c6 {[%clk 0:02:59.1]} 2. d4 {[%clk 0:03:00.5]}
2... d5 {[%clk 0:02:59.2]} 3. exd5 {[%clk 0:03:01.4]} 3... cxd5 {[%clk
0:02:59.1]} 4. Bd3 {[%clk 0:03:02]} 4... Nc6 {[%clk 0:02:58.8]} 5. c3 {[%clk
0:03:02.4]} 5... Nf6 {[%clk 0:02:59]} 6. Bf4 {[%clk 0:03:01.8]} 6... Bg4 {[%clk
0:02:56.5]} 7. Qb3 {[%clk 0:03:01.1]} 7... Qd7 {[%clk 0:02:54.7]} 8. Nd2 {[%clk
0:02:59.5]} 8... e6 {[%clk 0:02:55]} 9. Ngf3 {[%clk 0:02:59.6]} 9... Bd6 {[%clk
0:02:54.9]} 10. Bxd6 {[%clk 0:02:59]} 10... Qxd6 {[%clk 0:02:54.8]} 11. O-O
{[%clk 0:02:59.3]} 11... O-O {[%clk 0:02:51.8]} 12. Rae1 {[%clk 0:02:58]} 12...
Bxf3 {[%clk 0:02:38.1]} 13. Nxf3 {[%clk 0:02:57.8]} 13... Rab8 {[%clk
0:02:38.1]} 14. Ne5 {[%clk 0:02:54]} 14... b5 {[%clk 0:02:32.4]} 15. Qc2 {[%clk
0:02:34.4]} 15... Rfc8 {[%clk 0:02:30.1]} 16. Qe2 {[%clk 0:02:24.7]} 16... b4
{[%clk 0:02:25.9]} 17. f4 {[%clk 0:02:24.2]} 17... bxc3 {[%clk 0:02:23.6]} 18.
bxc3 {[%clk 0:02:23.7]} 18... Ne7 {[%clk 0:02:23.6]} 19. Rc1 {[%clk 0:02:17]}
19... Qa3 {[%clk 0:02:15.9]} 20. Qe1 {[%clk 0:01:56.9]} 20... Rb2 {[%clk
0:02:05.1]} 21. Bb1 {[%clk 0:01:49.9]} 21... Nf5 {[%clk 0:01:56.1]} 22. Nd3
{[%clk 0:01:41.9]} 22... Rbb8 {[%clk 0:01:24]} 23. Nc5 {[%clk 0:01:42]} 23...
Re8 {[%clk 0:01:15.7]} 24. Rf3 {[%clk 0:01:29.4]} 24... Rb2 {[%clk 0:00:50.4]}
25. Rh3 {[%clk 0:01:18.3]} 25... g6 {[%clk 0:00:41.5]} 26. Rc2 {[%clk
0:00:58.6]} 26... Rxc2 {[%clk 0:00:39.4]} 27. Bxc2 {[%clk 0:00:59.5]} 27... Qb2
{[%clk 0:00:39.2]} 28. Bb3 {[%clk 0:00:49.9]} 28... a5 {[%clk 0:00:31.5]} 29.
Rd3 {[%clk 0:00:46.6]} 29... Nd6 {[%clk 0:00:28.2]} 30. Qd2 {[%clk 0:00:39.7]}
30... Nde4 {[%clk 0:00:27.7]} 31. Qxb2 {[%clk 0:00:38.8]} 1-0

[Event "*** Titled Tuesday Blitz"]
[Site "Chess.com"]
[Date "2021.03.30"]
[Round "11"]
[White "attack2mateU"]
[Black "Nesty_Javi_Chess"]
[Result "0-1"]
[WhiteElo "2726"]
[BlackElo "2633"]
[TimeControl "180+1"]
[EndTime "12:07:43 PDT"]
[Termination "Nesty_Javi_Chess won on time"]

1. e4 {[%clk 0:03:00.9]} 1... e5 {[%clk 0:02:59.3]} 2. Nf3 {[%clk 0:03:00.9]}
2... Nc6 {[%clk 0:03:00.2]} 3. Bc4 {[%clk 0:03:00.9]} 3... g6 {[%clk 0:03:00.1]}
4. O-O {[%clk 0:02:51.5]} 4... Bg7 {[%clk 0:02:59.8]} 5. c3 {[%clk 0:02:46.1]}
5... Nge7 {[%clk 0:02:59.7]} 6. d4 {[%clk 0:02:46]} 6... exd4 {[%clk 0:03:00.6]}
7. cxd4 {[%clk 0:02:46.7]} 7... O-O {[%clk 0:03:01]} 8. Nc3 {[%clk 0:02:46.4]}
8... d6 {[%clk 0:03:01]} 9. h3 {[%clk 0:02:45.7]} 9... h6 {[%clk 0:03:01.5]} 10.
Bb3 {[%clk 0:02:00.1]} 10... Kh7 {[%clk 0:03:00.4]} 11. Re1 {[%clk 0:01:58.8]}
11... f5 {[%clk 0:02:58.3]} 12. e5 {[%clk 0:01:59]} 12... d5 {[%clk 0:02:46]}
13. h4 {[%clk 0:01:49.6]} 13... Be6 {[%clk 0:02:45.2]} 14. Ne2 {[%clk
0:01:49.3]} 14... Qd7 {[%clk 0:02:36.2]} 15. Nf4 {[%clk 0:01:49.4]} 15... Nd8
{[%clk 0:02:36.5]} 16. Bd2 {[%clk 0:01:43.8]} 16... Bg8 {[%clk 0:02:28.2]} 17.
Bb4 {[%clk 0:01:41.4]} 17... Ne6 {[%clk 0:02:23.8]} 18. Bxe7 {[%clk 0:01:35.8]}
18... Nxf4 {[%clk 0:02:22.5]} 19. Bxf8 {[%clk 0:01:34.7]} 19... Rxf8 {[%clk
0:02:23.4]} 20. Qd2 {[%clk 0:01:27.8]} 20... Ne6 {[%clk 0:02:10.9]} 21. Qa5
{[%clk 0:01:27.9]} 21... c6 {[%clk 0:02:09]} 22. Qxa7 {[%clk 0:01:27.9]} 22...
g5 {[%clk 0:02:09.2]} 23. hxg5 {[%clk 0:01:27.7]} 23... hxg5 {[%clk 0:02:10.1]}
24. a4 {[%clk 0:01:08.3]} 24... Qe7 {[%clk 0:01:54.5]} 25. Bc2 {[%clk
0:01:06.9]} 25... Kh8 {[%clk 0:01:53.9]} 26. a5 {[%clk 0:01:06.1]} 26... g4
{[%clk 0:01:53.9]} 27. Nh2 {[%clk 0:01:05.9]} 27... Qh4 {[%clk 0:01:48.9]} 28.
Ra3 {[%clk 0:00:58]} 28... Rf7 {[%clk 0:01:24.9]} 29. Qb6 {[%clk 0:00:53.7]}
29... Bf8 {[%clk 0:01:23.8]} 30. Rg3 {[%clk 0:00:12.5]} 30... Rh7 {[%clk
0:01:17.7]} 31. Kf1 {[%clk 0:00:07.9]} 31... Nf4 {[%clk 0:01:08.5]} 32. Rxg4
{[%clk 0:00:03.3]} 32... fxg4 {[%clk 0:00:58.4]} 33. Bxh7 {[%clk 0:00:03.4]}
33... Qxh2 {[%clk 0:00:54.5]} 0-1

[Event "*** Titled Tuesday Blitz"]
[Site "Chess.com"]
[Date "2021.03.30"]
[Round "11"]
[White "Blitzking642"]
[Black "Srisshhhtea"]
[Result "1-0"]
[WhiteElo "2443"]
[BlackElo "2347"]
[TimeControl "180+1"]
[EndTime "12:07:43 PDT"]
[Termination "Blitzking642 won by resignation"]

1. e4 {[%clk 0:03:00.9]} 1... e6 {[%clk 0:02:58.2]} 2. d4 {[%clk 0:03:00.7]}
2... d5 {[%clk 0:02:57.7]} 3. Nd2 {[%clk 0:03:01.1]} 3... Nc6 {[%clk 0:02:55]}
4. Ngf3 {[%clk 0:02:49.5]} 4... Nf6 {[%clk 0:02:53.7]} 5. e5 {[%clk 0:02:47]}
5... Nd7 {[%clk 0:02:51.6]} 6. Bd3 {[%clk 0:02:34.2]} 6... Nb4 {[%clk
0:02:47.4]} 7. Be2 {[%clk 0:02:29.6]} 7... c5 {[%clk 0:02:46.3]} 8. c3 {[%clk
0:02:24]} 8... Nc6 {[%clk 0:02:45.6]} 9. O-O {[%clk 0:02:21.2]} 9... cxd4 {[%clk
0:02:28.4]} 10. cxd4 {[%clk 0:02:20.8]} 10... Qb6 {[%clk 0:02:28.7]} 11. Nb1
{[%clk 0:01:55.8]} 11... Be7 {[%clk 0:02:10.5]} 12. Nc3 {[%clk 0:01:54.8]} 12...
h6 {[%clk 0:01:53.4]} 13. Be3 {[%clk 0:01:55]} 13... O-O {[%clk 0:01:41.9]} 14.
Qd2 {[%clk 0:01:46.5]} 14... f5 {[%clk 0:01:29]} 15. exf6 {[%clk 0:01:42.5]}
15... Nxf6 {[%clk 0:01:27.3]} 16. Ne5 {[%clk 0:01:38.2]} 16... Bd6 {[%clk
0:01:18.2]} 17. f4 {[%clk 0:01:35.1]} 17... Qd8 {[%clk 0:01:12.8]} 18. Bd3
{[%clk 0:01:32.1]} 18... Bd7 {[%clk 0:01:06.7]} 19. Rae1 {[%clk 0:01:29.6]}
19... Be8 {[%clk 0:01:02.2]} 20. Bb1 {[%clk 0:01:27.4]} 20... Ne7 {[%clk
0:00:49.2]} 21. Qd3 {[%clk 0:01:10]} 21... Bxe5 {[%clk 0:00:44.9]} 22. fxe5
{[%clk 0:01:02.5]} 22... Bg6 {[%clk 0:00:45]} 23. Qd2 {[%clk 0:01:02.9]} 23...
Ng4 {[%clk 0:00:38.2]} 24. Bf4 {[%clk 0:00:52.4]} 24... Bxb1 {[%clk 0:00:37.1]}
25. Rxb1 {[%clk 0:00:48.8]} 25... h5 {[%clk 0:00:12.5]} 26. h3 {[%clk
0:00:47.9]} 26... Nh6 {[%clk 0:00:12.7]} 27. Bxh6 {[%clk 0:00:47]} 27... gxh6
{[%clk 0:00:13.6]} 28. Qxh6 {[%clk 0:00:46.7]} 28... Nf5 {[%clk 0:00:13.3]} 29.
Qxe6+ {[%clk 0:00:46.3]} 29... Kg7 {[%clk 0:00:11]} 30. Rxf5 {[%clk 0:00:45.3]}
1-0

[Event "*** Titled Tuesday Blitz"]
[Site "Chess.com"]
[Date "2021.03.30"]
[Round "11"]
[White "Taktikmonster"]
[Black "Savva09022009"]
[Result "0-1"]
[WhiteElo "2398"]
[BlackElo "2607"]
[TimeControl "180+1"]
[EndTime "12:07:46 PDT"]
[Termination "Savva09022009 won by resignation"]

1. e4 {[%clk 0:02:57.7]} 1... c5 {[%clk 0:03:00.2]} 2. Nf3 {[%clk 0:02:57.5]}
2... d6 {[%clk 0:02:55.9]} 3. d4 {[%clk 0:02:57.5]} 3... cxd4 {[%clk 0:02:56.8]}
4. Nxd4 {[%clk 0:02:58.3]} 4... Nf6 {[%clk 0:02:57.2]} 5. Nc3 {[%clk 0:02:58.2]}
5... Nc6 {[%clk 0:02:57.8]} 6. Bg5 {[%clk 0:02:57.9]} 6... e6 {[%clk 0:02:55.6]}
7. Qd2 {[%clk 0:02:57.6]} 7... h6 {[%clk 0:02:51.4]} 8. Be3 {[%clk 0:02:52.5]}
8... Ng4 {[%clk 0:02:48.1]} 9. Nxc6 {[%clk 0:02:48.1]} 9... bxc6 {[%clk
0:02:47]} 10. Bc4 {[%clk 0:02:46.2]} 10... Nxe3 {[%clk 0:02:45.8]} 11. Qxe3
{[%clk 0:02:47.1]} 11... Qb6 {[%clk 0:02:41.6]} 12. Qxb6 {[%clk 0:02:43.2]}
12... axb6 {[%clk 0:02:42.5]} 13. a4 {[%clk 0:02:41]} 13... b5 {[%clk
0:02:34.3]} 14. Bd3 {[%clk 0:02:27.8]} 14... b4 {[%clk 0:02:28.4]} 15. Ne2
{[%clk 0:02:22.9]} 15... g6 {[%clk 0:02:22.7]} 16. c3 {[%clk 0:02:19.9]} 16...
bxc3 {[%clk 0:02:17.9]} 17. bxc3 {[%clk 0:02:18.3]} 17... Bg7 {[%clk 0:02:17.2]}
18. Kd2 {[%clk 0:02:18.5]} 18... Ba6 {[%clk 0:02:14.3]} 19. Bxa6 {[%clk
0:02:14.7]} 19... Rxa6 {[%clk 0:02:15.2]} 20. Rhb1 {[%clk 0:02:15]} 20... O-O
{[%clk 0:02:14.2]} 21. Nd4 {[%clk 0:01:57.7]} 21... Rfa8 {[%clk 0:02:13.5]} 22.
Nc2 {[%clk 0:01:40.5]} 22... Rxa4 {[%clk 0:02:12.3]} 23. Rxa4 {[%clk 0:01:41.4]}
23... Rxa4 {[%clk 0:02:12.5]} 24. Kd3 {[%clk 0:01:36.6]} 24... d5 {[%clk
0:02:07.7]} 25. exd5 {[%clk 0:01:36.5]} 25... cxd5 {[%clk 0:02:08.6]} 26. Rb4
{[%clk 0:01:31.2]} 26... Ra2 {[%clk 0:02:04.8]} 27. Rb8+ {[%clk 0:01:29.8]}
27... Kh7 {[%clk 0:02:04.9]} 28. Rb7 {[%clk 0:01:29.8]} 28... Kg8 {[%clk
0:01:57.2]} 29. Rb8+ {[%clk 0:01:29.7]} 29... Bf8 {[%clk 0:01:57.8]} 30. h4
{[%clk 0:01:23.8]} 30... h5 {[%clk 0:01:56.8]} 31. f3 {[%clk 0:01:21.8]} 31...
Kg7 {[%clk 0:01:56.4]} 32. g4 {[%clk 0:01:19.7]} 32... Be7 {[%clk 0:01:54.7]}
33. g5 {[%clk 0:01:16.5]} 33... Ra4 {[%clk 0:01:54.1]} 34. Nd4 {[%clk
0:01:10.9]} 34... Bc5 {[%clk 0:01:50.9]} 35. Rb7 {[%clk 0:00:52.4]} 35... Bxd4
{[%clk 0:01:42.3]} 36. cxd4 {[%clk 0:00:53.3]} 36... Ra1 {[%clk 0:01:41.7]} 37.
Ke3 {[%clk 0:00:49.4]} 37... Rh1 {[%clk 0:01:42.4]} 38. Kf4 {[%clk 0:00:49.9]}
38... Rxh4+ {[%clk 0:01:42.1]} 39. Ke5 {[%clk 0:00:50.3]} 39... Rh1 {[%clk
0:01:38.2]} 40. Kd6 {[%clk 0:00:45]} 40... Rf1 {[%clk 0:01:36.5]} 41. Ke7 {[%clk
0:00:41.6]} 41... h4 {[%clk 0:01:35.4]} 42. Ke8 {[%clk 0:00:33.8]} 42... Rxf3
{[%clk 0:01:35.5]} 43. Rb2 {[%clk 0:00:32.8]} 43... h3 {[%clk 0:01:35.4]} 44.
Rh2 {[%clk 0:00:33.2]} 44... e5 {[%clk 0:01:34.5]} 45. dxe5 {[%clk 0:00:32.9]}
45... d4 {[%clk 0:01:35.4]} 46. Ke7 {[%clk 0:00:28.7]} 46... d3 {[%clk 0:01:35]}
47. e6 {[%clk 0:00:22.9]} 47... Re3 {[%clk 0:01:33.3]} 48. Kd6 {[%clk
0:00:20.6]} 48... Rxe6+ {[%clk 0:01:33.2]} 49. Kd5 {[%clk 0:00:21.2]} 49... Re8
{[%clk 0:01:28.6]} 50. Rd2 {[%clk 0:00:16.8]} 50... h2 {[%clk 0:01:28.5]} 51.
Rxh2 {[%clk 0:00:16.4]} 51... d2 {[%clk 0:01:28.6]} 52. Rxd2 {[%clk 0:00:14.8]}
52... Rd8+ {[%clk 0:01:29.5]} 53. Ke5 {[%clk 0:00:15]} 53... Rxd2 {[%clk
0:01:29.9]} 54. Kf4 {[%clk 0:00:15.9]} 54... Rf2+ {[%clk 0:01:29.8]} 0-1

[Event "*** Titled Tuesday Blitz"]
[Site "Chess.com"]
[Date "2021.03.30"]
[Round "11"]
[White "Chopper1905"]
[Black "Supernotar"]
[Result "0-1"]
[WhiteElo "2910"]
[BlackElo "2731"]
[TimeControl "180+1"]
[EndTime "12:07:50 PDT"]
[Termination "Supernotar won by resignation"]

1. d4 {[%clk 0:03:00.9]} 1... d5 {[%clk 0:03:00.4]} 2. Bf4 {[%clk 0:02:52.7]}
2... Nf6 {[%clk 0:03:00.4]} 3. e3 {[%clk 0:02:52]} 3... e6 {[%clk 0:03:01]} 4.
Nd2 {[%clk 0:02:47.5]} 4... c5 {[%clk 0:03:01.3]} 5. c3 {[%clk 0:02:45.9]} 5...
Bd6 {[%clk 0:03:01.4]} 6. Bb5+ {[%clk 0:02:39.9]} 6... Nc6 {[%clk 0:03:00.5]} 7.
Qa4 {[%clk 0:02:32]} 7... O-O {[%clk 0:02:53.4]} 8. Bxc6 {[%clk 0:02:30.2]} 8...
bxc6 {[%clk 0:02:54.3]} 9. Bxd6 {[%clk 0:02:21.6]} 9... Qxd6 {[%clk 0:02:55.2]}
10. Qa3 {[%clk 0:02:22.1]} 10... Nd7 {[%clk 0:02:50.2]} 11. Nb3 {[%clk
0:02:20.8]} 11... e5 {[%clk 0:02:36.6]} 12. Nxc5 {[%clk 0:02:11.2]} 12... Nxc5
{[%clk 0:02:32.9]} 13. Qxc5 {[%clk 0:02:10]} 13... Qg6 {[%clk 0:02:32.6]} 14.
Ne2 {[%clk 0:02:01]} 14... Qxg2 {[%clk 0:02:26.3]} 15. Rg1 {[%clk 0:02:00.8]}
15... Qxh2 {[%clk 0:02:23.2]} 16. Qxc6 {[%clk 0:01:45.4]} 16... Be6 {[%clk
0:02:12.5]} 17. Qc7 {[%clk 0:01:38.5]} 17... Rab8 {[%clk 0:02:09.4]} 18. O-O-O
{[%clk 0:01:31.8]} 18... Qxf2 {[%clk 0:02:04]} 19. Qxe5 {[%clk 0:01:13.4]} 19...
g6 {[%clk 0:02:04.1]} 20. Rd2 {[%clk 0:00:49.1]} 20... Rfc8 {[%clk 0:02:00.9]}
21. Rh1 {[%clk 0:00:24.4]} 21... Bf5 {[%clk 0:01:51.4]} 22. Qh2 {[%clk
0:00:11.1]} 22... Qxe3 {[%clk 0:01:45.7]} 23. Qxh7+ {[%clk 0:00:10.2]} 23... Kf8
{[%clk 0:01:46.3]} 24. Qh8+ {[%clk 0:00:09.8]} 24... Ke7 {[%clk 0:01:45.7]} 25.
Qh4+ {[%clk 0:00:10.7]} 25... g5 {[%clk 0:01:28.9]} 26. Qe1 {[%clk 0:00:08.5]}
26... Be4 {[%clk 0:01:12.4]} 27. Rf1 {[%clk 0:00:05.7]} 27... Rxc3+ {[%clk
0:01:07.4]} 28. Nxc3 {[%clk 0:00:05.3]} 28... Qxc3+ {[%clk 0:01:07.7]} 29. Kd1
{[%clk 0:00:05.6]} 29... Rxb2 {[%clk 0:01:07.9]} 30. Rxf7+ {[%clk 0:00:04.7]}
30... Kxf7 {[%clk 0:00:43.1]} 31. Rf2+ {[%clk 0:00:04.1]} 31... Bf3+ {[%clk
0:00:43.6]} 0-1

[Event "*** Titled Tuesday Blitz"]
[Site "Chess.com"]
[Date "2021.03.30"]
[Round "11"]
[White "Ze-Pequeno"]
[Black "AniJak"]
[Result "1-0"]
[WhiteElo "2229"]
[BlackElo "2285"]
[TimeControl "180+1"]
[EndTime "12:07:50 PDT"]
[Termination "Ze-Pequeno won by resignation"]

1. e4 {[%clk 0:03:00.9]} 1... c5 {[%clk 0:02:59.1]} 2. Nf3 {[%clk 0:03:00.5]}
2... e6 {[%clk 0:02:59.2]} 3. d4 {[%clk 0:03:00.9]} 3... cxd4 {[%clk 0:02:59.4]}
4. Nxd4 {[%clk 0:03:01.8]} 4... a6 {[%clk 0:02:59.9]} 5. Bd3 {[%clk 0:03:01.4]}
5... Bc5 {[%clk 0:02:59]} 6. Nb3 {[%clk 0:03:00.9]} 6... Be7 {[%clk 0:02:59.4]}
7. Qg4 {[%clk 0:03:00.6]} 7... g6 {[%clk 0:02:59.3]} 8. Qe2 {[%clk 0:03:01]}
8... d6 {[%clk 0:02:59.1]} 9. O-O {[%clk 0:03:01.1]} 9... Nd7 {[%clk 0:02:59.2]}
10. Na3 {[%clk 0:02:43.1]} 10... b5 {[%clk 0:02:57.9]} 11. Bd2 {[%clk
0:02:31.5]} 11... Rb8 {[%clk 0:02:37.6]} 12. Ba5 {[%clk 0:02:20.6]} 12... Nb6
{[%clk 0:02:34.1]} 13. c4 {[%clk 0:02:15.6]} 13... b4 {[%clk 0:02:23.2]} 14. c5
{[%clk 0:01:50.5]} 14... bxa3 {[%clk 0:02:12.9]} 15. cxb6 {[%clk 0:01:49.3]}
15... Bb7 {[%clk 0:01:45.1]} 16. Rac1 {[%clk 0:01:39.1]} 16... Nf6 {[%clk
0:01:42.6]} 17. bxa3 {[%clk 0:01:24.4]} 17... O-O {[%clk 0:01:42.3]} 18. Rc7
{[%clk 0:01:18.7]} 18... d5 {[%clk 0:01:40.4]} 19. e5 {[%clk 0:01:13.5]} 19...
Ne4 {[%clk 0:01:40.3]} 20. Rd1 {[%clk 0:00:55.3]} 20... Qe8 {[%clk 0:01:24.4]}
21. Bxe4 {[%clk 0:00:38.9]} 21... dxe4 {[%clk 0:01:23.3]} 22. Rdd7 {[%clk
0:00:39.3]} 22... Bxa3 {[%clk 0:01:04.4]} 23. Rxb7 {[%clk 0:00:38.8]} 23... Rxb7
{[%clk 0:00:58.3]} 24. Rxb7 {[%clk 0:00:38.6]} 24... Qc6 {[%clk 0:00:47.3]} 25.
Rc7 {[%clk 0:00:37.4]} 25... Qd5 {[%clk 0:00:48.2]} 26. b7 {[%clk 0:00:32.5]}
26... e3 {[%clk 0:00:36]} 27. fxe3 {[%clk 0:00:25.7]} 27... Qxe5 {[%clk
0:00:30.2]} 28. Rc8 {[%clk 0:00:25.3]} 28... Bd6 {[%clk 0:00:30.3]} 29. g3
{[%clk 0:00:24.3]} 29... Kg7 {[%clk 0:00:20.2]} 30. Bc3 {[%clk 0:00:22.8]} 1-0

[Event "*** Titled Tuesday Blitz"]
[Site "Chess.com"]
[Date "2021.03.30"]
[Round "11"]
[White "Fortitudine"]
[Black "KroshkaKami"]
[Result "0-1"]
[WhiteElo "2273"]
[BlackElo "2405"]
[TimeControl "180+1"]
[EndTime "12:07:53 PDT"]
[Termination "KroshkaKami won by resignation"]

1. c4 {[%clk 0:03:00.9]} 1... e5 {[%clk 0:02:59.3]} 2. g3 {[%clk 0:03:00]} 2...
d6 {[%clk 0:02:59.1]} 3. Bg2 {[%clk 0:02:59.2]} 3... f5 {[%clk 0:02:59.5]} 4.
Nc3 {[%clk 0:02:58.8]} 4... Nf6 {[%clk 0:02:59.4]} 5. d3 {[%clk 0:02:57.1]} 5...
Be7 {[%clk 0:02:59.2]} 6. e4 {[%clk 0:02:52.6]} 6... O-O {[%clk 0:02:59.1]} 7.
Nge2 {[%clk 0:02:52.5]} 7... a5 {[%clk 0:02:59]} 8. O-O {[%clk 0:02:51.9]} 8...
fxe4 {[%clk 0:02:51.4]} 9. dxe4 {[%clk 0:02:51.8]} 9... Be6 {[%clk 0:02:50]} 10.
b3 {[%clk 0:02:51.1]} 10... Na6 {[%clk 0:02:50]} 11. f3 {[%clk 0:02:50.2]} 11...
Nc5 {[%clk 0:02:47.3]} 12. Be3 {[%clk 0:02:47.5]} 12... Qc8 {[%clk 0:02:46.7]}
13. Qd2 {[%clk 0:02:34.5]} 13... b6 {[%clk 0:02:39.3]} 14. Rab1 {[%clk
0:01:41.3]} 14... Kh8 {[%clk 0:02:26.2]} 15. Nd5 {[%clk 0:01:33.3]} 15... Bd8
{[%clk 0:02:21.9]} 16. Nec3 {[%clk 0:01:27.2]} 16... Qd7 {[%clk 0:02:02.1]} 17.
Nxf6 {[%clk 0:01:20.1]} 17... Bxf6 {[%clk 0:02:03]} 18. f4 {[%clk 0:01:16.5]}
18... exf4 {[%clk 0:01:56.9]} 19. gxf4 {[%clk 0:01:11.4]} 19... Bh3 {[%clk
0:01:44.6]} 20. Nd5 {[%clk 0:00:14.9]} 20... Rae8 {[%clk 0:01:22.7]} 21. Bxc5
{[%clk 0:00:13]} 21... bxc5 {[%clk 0:01:23.6]} 22. Nxf6 {[%clk 0:00:13]} 22...
Rxf6 {[%clk 0:01:22.3]} 23. Rbe1 {[%clk 0:00:13.1]} 23... Rg6 {[%clk 0:01:21.3]}
24. Rf2 {[%clk 0:00:11.7]} 24... Qg4 {[%clk 0:01:18.3]} 25. f5 {[%clk
0:00:11.3]} 25... Rg5 {[%clk 0:01:15.1]} 26. Qe2 {[%clk 0:00:10.7]} 26... Qh4
{[%clk 0:00:39.6]} 27. Qf3 {[%clk 0:00:10.3]} 27... Bxg2 {[%clk 0:00:33.6]} 28.
Rxg2 {[%clk 0:00:11.2]} 28... Qxe1+ {[%clk 0:00:33.1]} 0-1